Workbook

Sheet INGRESO DE DATOS
A8: COTIZACION DE SEGURO MEDICO INTERNACIONAL
A10: 1. INGRESE LOS DATOS DEL PROPUESTO ASEGURADO :
C12: Nombre del Asegurado principal : | D12: NOMBRE COMPLETO
F14: Número de adultos en la póliza : | G14: 1 | I14: Número de hijos en la póliza : | J14: 2
F16: Edad del titular : | G16: 25 | I16: Edad de cónyuge : | J16: 18
A19: 2. INGRESE EL NOMBRE DE LA AGENCIA ASESORA :
C21: Nombre de la Agencia : | D21: AGENCIA
A24: 3. ESCOJA EL PRODUCTO PARA VISUALIZAR LA COTIZACION RESPECTIVA :

Sheet Exclusive
C10: Cotización de Seguro Médico Internacional - Bupa EXCLUSIVE Care
H12: =+'INGRESO DE DATOS'!$D$12 -> NOMBRE COMPLETO
H14: =+'INGRESO DE DATOS'!$D$21 -> AGENCIA
J16: =+'INGRESO DE DATOS'!$G$14 -> 1 | M16: =+'INGRESO DE DATOS'!$G$16 -> 25
F17: FECHA DE COTIZACION :
F18: =NOW() -> 2021-11-04T17:01:35.340 | J18: =+'INGRESO DE DATOS'!$J$14 -> 2 | M18: =+'INGRESO DE DATOS'!$J$16 -> 18
I20: TRUE | K20: COMPLICACIONES DE MATERNIDAD
J22: FALSE
F25: Deducibles | H25: PLAN 1 | I25: PLAN 2 | J25: PLAN 3 | K25: PLAN 4 | L25: PLAN 5 | M25: PLAN 6
F26: Dentro del pais de residencia | H26: n/a | I26: 1000 | J26: 2000 | K26: 5000 | L26: 10000 | M26: 20000
F27: Fuera del pais de residencia | H27: n/a | I27: 2000 | J27: 3000 | K27: 5000 | L27: 10000 | M27: 20000
F30: Tarifas Anuales
F31: Prima de Titular : | H31: n/a | I31: =VLOOKUP($M$16,Tablas!$A$6:$H$29,4,TRUE) -> 11116 | J31: =VLOOKUP($M$16,Tablas!$A$6:$H$29,5,TRUE) -> 7739 | K31: =VLOOKUP($M$16,Tablas!$A$6:$H$29,6,TRUE) -> 5413 | L31: =VLOOKUP($M$16,Tablas!$A$6:$H$29,7,TRUE) -> 3777 | M31: =VLOOKUP($M$16,Tablas!$A$6:$H$29,8,TRUE) -> 2974
F32: Prima de Cónyuge | H32: n/a | I32: =IF($J$16=1,0,(VLOOKUP($M$18,Tablas!$A$6:$H$29,4,TRUE))) -> 0 | J32: =IF($J$16=1,0,(VLOOKUP($M$18,Tablas!$A$6:$H$29,5,TRUE))) -> 0 | K32: =IF($J$16=1,0,(VLOOKUP($M$18,Tablas!$A$6:$H$29,6,TRUE))) -> 0 | L32: =IF($J$16=1,0,(VLOOKUP($M$18,Tablas!$A$6:$H$29,7,TRUE))) -> 0 | M32: =IF($J$16=1,0,(VLOOKUP($M$18,Tablas!$A$6:$H$29,8,TRUE))) -> 0
F33: Primas Hijos : | H33: n/a | I33: =IF($J$18=0,0,(VLOOKUP($J$18,Tablas!$A$30:$H$32,4,TRUE))) -> 5848 | J33: =IF($J$18=0,0,(VLOOKUP($J$18,Tablas!$A$30:$H$32,5,TRUE))) -> 4309 | K33: =IF($J$18=0,0,(VLOOKUP($J$18,Tablas!$A$30:$H$32,6,TRUE))) -> 3465 | L33: =IF($J$18=0,0,(VLOOKUP($J$18,Tablas!$A$30:$H$32,7,TRUE))) -> 2860 | M33: =IF($J$18=0,0,(VLOOKUP($J$18,Tablas!$A$30:$H$32,8,TRUE))) -> 2226
F34: Prima Rider Complic. Maternidad | H34: n/a | I34: =+IF($I$20=FALSE,0,Tablas!D$33) -> 0 | J34: =+IF($I$20=FALSE,0,Tablas!E$33) -> 0 | K34: =+IF($I$20=FALSE,0,Tablas!F$33) -> 225 | L34: =+IF($I$20=FALSE,0,Tablas!G$33) -> 225 | M34: =+IF($I$20=FALSE,0,Tablas!H$33) -> 225
F35: TOTAL PRIMA NETA : | H35: n/a | I35: =SUM(I31:I34) -> 16964 | J35: =SUM(J31:J34) -> 12048 | K35: =SUM(K31:K34) -> 9103 | L35: =SUM(L31:L34) -> 6862 | M35: =SUM(M31:M34) -> 5425
F36: Costo Administrativo Anual : | H36: n/a | I36: 75 | J36: 75 | K36: 75 | L36: 75 | M36: 75
F37: GRAN TOTAL : | H37: n/a | I37: =SUM(I35:I36) -> 17039 | J37: =SUM(J35:J36) -> 12123 | K37: =SUM(K35:K36) -> 9178 | L37: =SUM(L35:L36) -> 6937 | M37: =SUM(M35:M36) -> 5500
F39: Tarifas Semestrales
F40: Prima de Titular : | H40: n/a | I40: =VLOOKUP($M$16,Tablas!$A$39:$H$62,4,TRUE) -> 5891.48 | J40: =VLOOKUP($M$16,Tablas!$A$39:$H$62,5,TRUE) -> 4101.67 | K40: =VLOOKUP($M$16,Tablas!$A$39:$H$62,6,TRUE) -> 2868.89 | L40: =VLOOKUP($M$16,Tablas!$A$39:$H$62,7,TRUE) -> 2001.81 | M40: =VLOOKUP($M$16,Tablas!$A$39:$H$62,8,TRUE) -> 1576.22
F41: Prima de Cónyuge | H41: n/a | I41: =IF($J$16=1,0,(VLOOKUP($M$18,Tablas!$A$39:$H$62,4,TRUE))) -> 0 | J41: =IF($J$16=1,0,(VLOOKUP($M$18,Tablas!$A$39:$H$62,5,TRUE))) -> 0 | K41: =IF($J$16=1,0,(VLOOKUP($M$18,Tablas!$A$39:$H$62,6,TRUE))) -> 0 | L41: =IF($J$16=1,0,(VLOOKUP($M$18,Tablas!$A$39:$H$62,7,TRUE))) -> 0 | M41: =IF($J$16=1,0,(VLOOKUP($M$18,Tablas!$A$39:$H$62,8,TRUE))) -> 0
F42: Primas Hijos : | H42: n/a | I42: =IF($J$18=0,0,(VLOOKUP($J$18,Tablas!$A$63:$H$65,4,TRUE))) -> 3099.44 | J42: =IF($J$18=0,0,(VLOOKUP($J$18,Tablas!$A$63:$H$65,5,TRUE))) -> 2283.77 | K42: =IF($J$18=0,0,(VLOOKUP($J$18,Tablas!$A$63:$H$65,6,TRUE))) -> 1836.45 | L42: =IF($J$18=0,0,(VLOOKUP($J$18,Tablas!$A$63:$H$65,7,TRUE))) -> 1515.8 | M42: =IF($J$18=0,0,(VLOOKUP($J$18,Tablas!$A$63:$H$65,8,TRUE))) -> 1179.78
F43: Prima Rider Complic. Maternidad | H43: n/a | I43: =+IF($I$20=FALSE,0,Tablas!D$66) -> 0 | J43: =+IF($I$20=FALSE,0,Tablas!E$66) -> 0 | K43: =+IF($I$20=FALSE,0,Tablas!F$66) -> 119.25 | L43: =+IF($I$20=FALSE,0,Tablas!G$66) -> 119.25 | M43: =+IF($I$20=FALSE,0,Tablas!H$66) -> 119.25
F44: TOTAL PRIMA NETA : | H44: n/a | I44: =SUM(I40:I43) -> 8990.92 | J44: =SUM(J40:J43) -> 6385.44 | K44: =SUM(K40:K43) -> 4824.59 | L44: =SUM(L40:L43) -> 3636.86 | M44: =SUM(M40:M43) -> 2875.25
F45: Costo Administrativo Anual : | H45: n/a | I45: 75 | J45: 75 | K45: 75 | L45: 75 | M45: 75
F46: GRAN TOTAL (1ra Cuota) : | H46: n/a | I46: =SUM(I44:I45) -> 9065.92 | J46: =SUM(J44:J45) -> 6460.44 | K46: =SUM(K44:K45) -> 4899.59 | L46: =SUM(L44:L45) -> 3711.86 | M46: =SUM(M44:M45) -> 2950.25
F47: GRAN TOTAL (2da Cuota) : | H47: n/a | I47: =I44 -> 8990.92 | J47: =J44 -> 6385.44 | K47: 4824.59 | L47: 3636.86 | M47: 2875.25
F48: Tarifas en US $ - Válidas desde 01 enero 2022
F50: Este presupuesto solamente tiene carácter informativo y en ningún momento expresa compromiso legal para suministrarle cobertura de seguro. La emisión de una póliza de seguro Bupa está sujeta a todas las evaluaciones de riesgo por parte de Bupa y a la recepción de todos los pagos de prima requeridos.

Sheet Privilege
C10: Cotización de Seguro Médico Internacional - Bupa PRIVILEGE Care
H12: =+'INGRESO DE DATOS'!$D$12 -> NOMBRE COMPLETO
H14: =+'INGRESO DE DATOS'!$D$21 -> AGENCIA
J16: =+'INGRESO DE DATOS'!$G$14 -> 1 | M16: =+'INGRESO DE DATOS'!$G$16 -> 25
F17: FECHA DE COTIZACION :
F18: =NOW() -> 2021-11-04T17:01:35.340 | J18: =+'INGRESO DE DATOS'!$J$14 -> 2 | M18: =+'INGRESO DE DATOS'!$J$16 -> 18
I20: TRUE | K20: COMPLICACIONES DE MATERNIDAD
J22: FALSE
F25: Deducibles | H25: PLAN 1 | I25: PLAN 2 | J25: PLAN 3 | K25: PLAN 4 | L25: PLAN 5 | M25: PLAN 6
F26: Dentro del pais de residencia | H26: n/a | I26: 1000 | J26: 2000 | K26: 5000 | L26: 10000 | M26: 20000
F27: Fuera del pais de residencia | H27: n/a | I27: 2000 | J27: 3000 | K27: 5000 | L27: 10000 | M27: 20000
F30: Tarifas Anuales
F31: Prima de Titular : | H31: n/a | I31: =VLOOKUP($M$16,Tablas!$A$140:$H$163,4,TRUE) -> 9355 | J31: =VLOOKUP($M$16,Tablas!$A$140:$H$163,5,TRUE) -> 6786 | K31: =VLOOKUP($M$16,Tablas!$A$140:$H$163,6,TRUE) -> 4702 | L31: =VLOOKUP($M$16,Tablas!$A$140:$H$163,7,TRUE) -> 3269 | M31: =VLOOKUP($M$16,Tablas!$A$140:$H$163,8,TRUE) -> 2489
F32: Prima de Cónyuge | H32: n/a | I32: =IF($J$16=1,0,(VLOOKUP($M$18,Tablas!$A$140:$H$163,4,TRUE))) -> 0 | J32: =IF($J$16=1,0,(VLOOKUP($M$18,Tablas!$A$140:$H$163,5,TRUE))) -> 0 | K32: =IF($J$16=1,0,(VLOOKUP($M$18,Tablas!$A$140:$H$163,6,TRUE))) -> 0 | L32: =IF($J$16=1,0,(VLOOKUP($M$18,Tablas!$A$140:$H$163,7,TRUE))) -> 0 | M32: =IF($J$16=1,0,(VLOOKUP($M$18,Tablas!$A$140:$H$163,8,TRUE))) -> 0
F33: Primas Hijos : | H33: n/a | I33: =IF($J$18=0,0,(VLOOKUP($J$18,Tablas!$A$164:$H$166,4,TRUE))) -> 4923 | J33: =IF($J$18=0,0,(VLOOKUP($J$18,Tablas!$A$164:$H$166,5,TRUE))) -> 3601 | K33: =IF($J$18=0,0,(VLOOKUP($J$18,Tablas!$A$164:$H$166,6,TRUE))) -> 2746 | L33: =IF($J$18=0,0,(VLOOKUP($J$18,Tablas!$A$164:$H$166,7,TRUE))) -> 2271 | M33: =IF($J$18=0,0,(VLOOKUP($J$18,Tablas!$A$164:$H$166,8,TRUE))) -> 1680
F34: Prima Rider Complic. Maternidad | H34: n/a | I34: =+IF($I$20=FALSE,0,Tablas!D$167) -> 0 | J34: =+IF($I$20=FALSE,0,Tablas!E$167) -> 0 | K34: =+IF($I$20=FALSE,0,Tablas!F$167) -> 225 | L34: =+IF($I$20=FALSE,0,Tablas!G$167) -> 225 | M34: =+IF($I$20=FALSE,0,Tablas!H$167) -> 225
F35: TOTAL PRIMA NETA : | H35: n/a | I35: =SUM(I31:I34) -> 14278 | J35: =SUM(J31:J34) -> 10387 | K35: =SUM(K31:K34) -> 7673 | L35: =SUM(L31:L34) -> 5765 | M35: =SUM(M31:M34) -> 4394
F36: Costo Administrativo Anual : | H36: n/a | I36: 75 | J36: 75 | K36: 75 | L36: 75 | M36: 75
F37: GRAN TOTAL : | H37: n/a | I37: =SUM(I35:I36) -> 14353 | J37: =SUM(J35:J36) -> 10462 | K37: =SUM(K35:K36) -> 7748 | L37: =SUM(L35:L36) -> 5840 | M37: =SUM(M35:M36) -> 4469
F39: Tarifas Semestrales
F40: Prima de Titular : | H40: n/a | I40: =VLOOKUP($M$16,Tablas!$A$173:$H$196,4,TRUE) -> 4958.15 | J40: =VLOOKUP($M$16,Tablas!$A$173:$H$196,5,TRUE) -> 3596.58 | K40: =VLOOKUP($M$16,Tablas!$A$173:$H$196,6,TRUE) -> 2492.06 | L40: =VLOOKUP($M$16,Tablas!$A$173:$H$196,7,TRUE) -> 1732.57 | M40: =VLOOKUP($M$16,Tablas!$A$173:$H$196,8,TRUE) -> 1319.17
F41: Prima de Cónyuge | H41: n/a | I41: =IF($J$16=1,0,(VLOOKUP($M$18,Tablas!$A$173:$H$196,4,TRUE))) -> 0 | J41: =IF($J$16=1,0,(VLOOKUP($M$18,Tablas!$A$173:$H$196,5,TRUE))) -> 0 | K41: =IF($J$16=1,0,(VLOOKUP($M$18,Tablas!$A$173:$H$196,6,TRUE))) -> 0 | L41: =IF($J$16=1,0,(VLOOKUP($M$18,Tablas!$A$173:$H$196,7,TRUE))) -> 0 | M41: =IF($J$16=1,0,(VLOOKUP($M$18,Tablas!$A$173:$H$196,8,TRUE))) -> 0
F42: Primas Hijos : | H42: n/a | I42: =IF($J$18=0,0,(VLOOKUP($J$18,Tablas!$A$197:$H$199,4,TRUE))) -> 2609.19 | J42: =IF($J$18=0,0,(VLOOKUP($J$18,Tablas!$A$197:$H$199,5,TRUE))) -> 1908.53 | K42: =IF($J$18=0,0,(VLOOKUP($J$18,Tablas!$A$197:$H$199,6,TRUE))) -> 1455.38 | L42: =IF($J$18=0,0,(VLOOKUP($J$18,Tablas!$A$197:$H$199,7,TRUE))) -> 1203.63 | M42: =IF($J$18=0,0,(VLOOKUP($J$18,Tablas!$A$197:$H$199,8,TRUE))) -> 890.4
F43: Prima Rider Complic. Maternidad | H43: n/a | I43: =+IF($I$20=FALSE,0,Tablas!D$200) -> 0 | J43: =+IF($I$20=FALSE,0,Tablas!E$200) -> 0 | K43: =+IF($I$20=FALSE,0,Tablas!F$200) -> 119.25 | L43: =+IF($I$20=FALSE,0,Tablas!G$200) -> 119.25 | M43: =+IF($I$20=FALSE,0,Tablas!H$200) -> 119.25
F44: TOTAL PRIMA NETA : | H44: n/a | I44: =SUM(I40:I43) -> 7567.34 | J44: =SUM(J40:J43) -> 5505.11 | K44: =SUM(K40:K43) -> 4066.69 | L44: =SUM(L40:L43) -> 3055.45 | M44: =SUM(M40:M43) -> 2328.82
F45: Costo Administrativo Anual : | H45: n/a | I45: 75 | J45: 75 | K45: 75 | L45: 75 | M45: 75
F46: GRAN TOTAL (1ra Cuota) : | H46: n/a | I46: =SUM(I44:I45) -> 7642.34 | J46: =SUM(J44:J45) -> 5580.11 | K46: =SUM(K44:K45) -> 4141.69 | L46: =SUM(L44:L45) -> 3130.45 | M46: =SUM(M44:M45) -> 2403.82
F47: GRAN TOTAL (2da Cuota) : | H47: n/a | I47: =I44 -> 7567.34 | J47: =J44 -> 5505.11 | K47: 4066.69 | L47: 3055.45 | M47: 2328.82
F48: Tarifas en US $ - Válidas desde 01 enero 2022
F50: Este presupuesto solamente tiene carácter informativo y en ningún momento expresa compromiso legal para suministrarle cobertura de seguro. La emisión de una póliza de seguro Bupa está sujeta a todas las evaluaciones de riesgo por parte de Bupa y a la recepción de todos los pagos de prima requeridos.

Sheet Advantage (Mundial)
C10: Cotización de Seguro Médico Internacional - Bupa ADVANTAGE Care
H12: =+'INGRESO DE DATOS'!$D$12 -> NOMBRE COMPLETO
H14: =+'INGRESO DE DATOS'!$D$21 -> AGENCIA
J16: =+'INGRESO DE DATOS'!$G$14 -> 1 | M16: =+'INGRESO DE DATOS'!$G$16 -> 25
F17: FECHA DE COTIZACION :
F18: =NOW() -> 2021-11-04T17:01:35.340 | J18: =+'INGRESO DE DATOS'!$J$14 -> 2 | M18: =+'INGRESO DE DATOS'!$J$16 -> 18
I20: FALSE | K20: COMPLICACIONES DE MATERNIDAD
I22: TRUE | K22: TRASPLANTE DE ORGANOS
F25: Deducibles | H25: PLAN 1 | I25: PLAN 2 | J25: PLAN 3 | K25: PLAN 4 | L25: PLAN 5 | M25: PLAN 6
F26: Dentro del pais de residencia | H26: n/a | I26: 1000 | J26: 2000 | K26: 5000 | L26: 10000 | M26: 20000
F27: Fuera del pais de residencia | H27: n/a | I27: 2000 | J27: 3000 | K27: 5000 | L27: 10000 | M27: 20000
F30: Tarifas Anuales
F31: Prima de Titular : | H31: n/a | I31: =VLOOKUP($M$16,Tablas!$A$274:$H$297,4,TRUE) -> 6596 | J31: =VLOOKUP($M$16,Tablas!$A$274:$H$297,5,TRUE) -> 4975 | K31: =VLOOKUP($M$16,Tablas!$A$274:$H$297,6,TRUE) -> 3677 | L31: =VLOOKUP($M$16,Tablas!$A$274:$H$297,7,TRUE) -> 2775 | M31: =VLOOKUP($M$16,Tablas!$A$274:$H$297,8,TRUE) -> 2190
F32: Prima de Cónyuge | H32: n/a | I32: =IF($J$16=1,0,(VLOOKUP($M$18,Tablas!$A$274:$H$297,4,TRUE))) -> 0 | J32: =IF($J$16=1,0,(VLOOKUP($M$18,Tablas!$A$274:$H$297,5,TRUE))) -> 0 | K32: =IF($J$16=1,0,(VLOOKUP($M$18,Tablas!$A$274:$H$297,6,TRUE))) -> 0 | L32: =IF($J$16=1,0,(VLOOKUP($M$18,Tablas!$A$274:$H$297,7,TRUE))) -> 0 | M32: =IF($J$16=1,0,(VLOOKUP($M$18,Tablas!$A$274:$H$297,8,TRUE))) -> 0
F33: Primas Hijos : | H33: n/a | I33: =IF($J$18=0,0,(VLOOKUP($J$18,Tablas!$A$298:$H$300,4,TRUE))) -> 4296 | J33: =IF($J$18=0,0,(VLOOKUP($J$18,Tablas!$A$298:$H$300,5,TRUE))) -> 2966 | K33: =IF($J$18=0,0,(VLOOKUP($J$18,Tablas!$A$298:$H$300,6,TRUE))) -> 2281 | L33: =IF($J$18=0,0,(VLOOKUP($J$18,Tablas!$A$298:$H$300,7,TRUE))) -> 1984 | M33: =IF($J$18=0,0,(VLOOKUP($J$18,Tablas!$A$298:$H$300,8,TRUE))) -> 1328
F34: Prima Rider Complic. Maternidad | H34: n/a | I34: =+IF($I$20=FALSE,0,Tablas!D$301) -> 0 | J34: =+IF($I$20=FALSE,0,Tablas!E$301) -> 0 | K34: =+IF($I$20=FALSE,0,Tablas!F$301) -> 0 | L34: =+IF($I$20=FALSE,0,Tablas!G$301) -> 0 | M34: =+IF($I$20=FALSE,0,Tablas!H$301) -> 0
F35: Prima Rider Trasplante Organos | H35: n/a | I35: =IF($I$22=FALSE,0,Tablas!D$302) -> 300 | J35: =IF($I$22=FALSE,0,Tablas!E$302) -> 300 | K35: =IF($I$22=FALSE,0,Tablas!F$302) -> 300 | L35: =IF($I$22=FALSE,0,Tablas!G$302) -> 300 | M35: =IF($I$22=FALSE,0,Tablas!H$302) -> 300
F36: TOTAL PRIMA NETA : | H36: n/a | I36: =SUM(I31:I35) -> 11192 | J36: 8241 | K36: 6258 | L36: 5059 | M36: 3818
F37: Costo Administrativo Anual : | H37: n/a | I37: 75 | J37: 75 | K37: 75 | L37: 75 | M37: 75
F38: GRAN TOTAL : | H38: n/a | I38: =SUM(I36:I37) -> 11267 | J38: =SUM(J36:J37) -> 8316 | K38: =SUM(K36:K37) -> 6333 | L38: =SUM(L36:L37) -> 5134 | M38: =SUM(M36:M37) -> 3893
F40: Tarifas Semestrales
F41: Prima de Titular : | H41: n/a | I41: =VLOOKUP($M$16,Tablas!$A$307:$H$330,4,TRUE) -> 3495.88 | J41: =VLOOKUP($M$16,Tablas!$A$307:$H$330,5,TRUE) -> 2636.75 | K41: =VLOOKUP($M$16,Tablas!$A$307:$H$330,6,TRUE) -> 1948.81 | L41: =VLOOKUP($M$16,Tablas!$A$307:$H$330,7,TRUE) -> 1470.75 | M41: =VLOOKUP($M$16,Tablas!$A$307:$H$330,8,TRUE) -> 1160.7
F42: Prima de Cónyuge | H42: n/a | I42: =IF($J$16=1,0,(VLOOKUP($M$18,Tablas!$A$307:$H$330,4,TRUE))) -> 0 | J42: =IF($J$16=1,0,(VLOOKUP($M$18,Tablas!$A$307:$H$330,5,TRUE))) -> 0 | K42: =IF($J$16=1,0,(VLOOKUP($M$18,Tablas!$A$307:$H$330,6,TRUE))) -> 0 | L42: =IF($J$16=1,0,(VLOOKUP($M$18,Tablas!$A$307:$H$330,7,TRUE))) -> 0 | M42: =IF($J$16=1,0,(VLOOKUP($M$18,Tablas!$A$307:$H$330,8,TRUE))) -> 0
F43: Primas Hijos : | H43: n/a | I43: =IF($J$18=0,0,(VLOOKUP($J$18,Tablas!$A$331:$H$333,4,TRUE))) -> 2276.88 | J43: =IF($J$18=0,0,(VLOOKUP($J$18,Tablas!$A$331:$H$333,5,TRUE))) -> 1571.98 | K43: =IF($J$18=0,0,(VLOOKUP($J$18,Tablas!$A$331:$H$333,6,TRUE))) -> 1208.93 | L43: =IF($J$18=0,0,(VLOOKUP($J$18,Tablas!$A$331:$H$333,7,TRUE))) -> 1051.52 | M43: =IF($J$18=0,0,(VLOOKUP($J$18,Tablas!$A$331:$H$333,8,TRUE))) -> 703.84
F44: Prima Rider Complic. Maternidad | H44: n/a | I44: =+IF($I$20=FALSE,0,Tablas!D$334) -> 0 | J44: =+IF($I$20=FALSE,0,Tablas!E$334) -> 0 | K44: =+IF($I$20=FALSE,0,Tablas!F$334) -> 0 | L44: =+IF($I$20=FALSE,0,Tablas!G$334) -> 0 | M44: =+IF($I$20=FALSE,0,Tablas!H$334) -> 0
F45: Prima Rider Trasplante Organos | H45: n/a | I45: =IF($I$22=FALSE,0,Tablas!D$335) -> 159 | J45: =IF($I$22=FALSE,0,Tablas!E$335) -> 159 | K45: =IF($I$22=FALSE,0,Tablas!F$335) -> 159 | L45: =IF($I$22=FALSE,0,Tablas!G$335) -> 159 | M45: =IF($I$22=FALSE,0,Tablas!H$335) -> 159
F46: TOTAL PRIMA NETA : | H46: n/a | I46: =SUM(I41:I45) -> 5931.76 | J46: 4367.73 | K46: 3316.74 | L46: 2681.27 | M46: 2023.54
F47: Costo Administrativo Anual : | H47: n/a | I47: 75 | J47: 75 | K47: 75 | L47: 75 | M47: 75
F48: GRAN TOTAL (1ra Cuota) : | H48: n/a | I48: =SUM(I46:I47) -> 6006.76 | J48: =SUM(J46:J47) -> 4442.73 | K48: =SUM(K46:K47) -> 3391.74 | L48: =SUM(L46:L47) -> 2756.27 | M48: =SUM(M46:M47) -> 2098.54
F49: GRAN TOTAL (2da Cuota) : | H49: n/a | I49: =I46 -> 5931.76 | J49: =J46 -> 4367.73 | K49: 3316.74 | L49: 2681.27 | M49: 2023.54
F50: Tarifas en US $ - Válidas desde 01 enero 2022
F52: Este presupuesto solamente tiene carácter informativo y en ningún momento expresa compromiso legal para suministrarle cobertura de seguro. La emisión de una póliza de seguro Bupa está sujeta a todas las evaluaciones de riesgo por parte de Bupa y a la recepción de todos los pagos de prima requeridos.

Sheet Advantage (LA) (hidden)
A10: Cotización de Seguro Médico Internacional - Bupa ADVANTAGE Care (cobertura solo Latinoamérica)
A12: Bupa Advantage Care (cobertura solo en Latinoamérica) | H12: =+'INGRESO DE DATOS'!$D$12 -> NOMBRE COMPLETO
A13: Cobertura Máxima anual | C13: US $ 3,500,000
A14: Cobertura Geografica | C14: Limitada a Latinoamérica excluyendo México | H14: =+'INGRESO DE DATOS'!$D$21 -> AGENCIA
A15: Condiciones médicas cubiertas | C15: Todas las condiciones médicas
A16: Redes de proveedores | C16: Red de Proveedores "Bupa Advantage" | J16: =+'INGRESO DE DATOS'!$G$14 -> 1 | M16: =+'INGRESO DE DATOS'!$G$16 -> 25
A17: Opciones fuera de la Red | C17: NO, solo en casos de emergencia | F17: FECHA DE COTIZACION :
A18: Requiere preautorización | C18: SI, 30% de penalización por omitir prenotificación | F18: =NOW() -> 2021-11-04T17:01:35.340 | J18: =+'INGRESO DE DATOS'!$J$14 -> 2 | M18: =+'INGRESO DE DATOS'!$J$16 -> 18
A20: Número máximo de días de hospitalización | C20: Ilimitado | I20: TRUE | K20: COMPLICACIONES DE MATERNIDAD
A21: Habitación y alimentación | C21: 100% dentro de Red Bupa
C22: "UCR" para L.A. en emergencias fuera de Red Bupa | I22: TRUE | K22: TRASPLANTE DE ORGANOS
A23: Cuidados Intensivos | C23: 100% dentro de Red Bupa
C24: "UCR" para L.A. en emergencias fuera de Red Bupa
A25: Cobertura de Maternidad | C25: $5,000 (Excepto planes 4,5, y 6) | F25: Deducibles | H25: PLAN 1 | I25: PLAN 2 | J25: PLAN 3 | K25: PLAN 4 | L25: PLAN 5 | M25: PLAN 6
A26: Cobertura Provisional de Recién Nacido | C26: $30,000 por los primeros 90 días | F26: Dentro del pais de residencia | H26: n/a | I26: 1000 | J26: 2000 | K26: 5000 | L26: 10000 | M26: 20000
A27: Cuidado del Recién Nacido saludable | C27: Ya incluída dentro del beneficio de Maternidad | F27: Fuera del pais de residencia | H27: n/a | I27: 2000 | J27: 3000 | K27: 5000 | L27: 10000 | M27: 20000
A28: Cobertura de Complicaciones de Maternidad | C28: Disponible a través de cobertura opcional adicional
A29: Trasplante de Organos | C29: $1,000,000 de por vida, por diagnóstico
A30: Condiciones congénitas y hereditarias | C30: <18 años $300,000 de por vida; >=18 al 100% | F30: Tarifas Anuales
A31: Coberturas opcionales (Riders) | C31: Complicaciones de Maternidad por $500,000 | F31: Prima de Titular : | H31: n/a | I31: =VLOOKUP($M$16,Tablas!$A$341:$H$364,4,TRUE) -> 5107 | J31: =VLOOKUP($M$16,Tablas!$A$341:$H$364,5,TRUE) -> 3842 | K31: =VLOOKUP($M$16,Tablas!$A$341:$H$364,6,TRUE) -> 2846 | L31: =VLOOKUP($M$16,Tablas!$A$341:$H$364,7,TRUE) -> 2140 | M31: =VLOOKUP($M$16,Tablas!$A$341:$H$364,8,TRUE) -> 1683
C32: Trasplante de órganos por $ 300,000 adicionales | F32: Prima de Cónyuge | H32: n/a | I32: =IF($J$16=1,0,(VLOOKUP($M$18,Tablas!$A$341:$H$364,4,TRUE))) -> 0 | J32: =IF($J$16=1,0,(VLOOKUP($M$18,Tablas!$A$341:$H$364,5,TRUE))) -> 0 | K32: =IF($J$16=1,0,(VLOOKUP($M$18,Tablas!$A$341:$H$364,6,TRUE))) -> 0 | L32: =IF($J$16=1,0,(VLOOKUP($M$18,Tablas!$A$341:$H$364,7,TRUE))) -> 0 | M32: =IF($J$16=1,0,(VLOOKUP($M$18,Tablas!$A$341:$H$364,8,TRUE))) -> 0
A33: Acompañamiento de menores hospitalizados | C33: $300 por día | F33: Primas Hijos : | H33: n/a | I33: =IF($J$18=0,0,(VLOOKUP($J$18,Tablas!$A$365:$H$367,4,TRUE))) -> 3347 | J33: =IF($J$18=0,0,(VLOOKUP($J$18,Tablas!$A$365:$H$367,5,TRUE))) -> 2316 | K33: =IF($J$18=0,0,(VLOOKUP($J$18,Tablas!$A$365:$H$367,6,TRUE))) -> 1779 | L33: =IF($J$18=0,0,(VLOOKUP($J$18,Tablas!$A$365:$H$367,7,TRUE))) -> 1547 | M33: =IF($J$18=0,0,(VLOOKUP($J$18,Tablas!$A$365:$H$367,8,TRUE))) -> 1034
A34: Ambulancia aérea | C34: $100,000 por año y ticket aéreo de retorno | F34: Prima Rider Complic. Maternidad | H34: n/a | I34: =+IF($I$20=FALSE,0,Tablas!D$368) -> 0 | J34: =+IF($I$20=FALSE,0,Tablas!E$368) -> 0 | K34: =+IF($I$20=FALSE,0,Tablas!F$368) -> 0 | L34: =+IF($I$20=FALSE,0,Tablas!G$368) -> 0 | M34: =+IF($I$20=FALSE,0,Tablas!H$368) -> 0
A35: Repatriación restos mortales | C35: 1 | F35: Prima Rider Trasplante Organos | H35: n/a | I35: =IF($I$22=FALSE,0,Tablas!D$369) -> 0 | J35: =IF($I$22=FALSE,0,Tablas!E$369) -> 0 | K35: =IF($I$22=FALSE,0,Tablas!F$369) -> 0 | L35: =IF($I$22=FALSE,0,Tablas!G$369) -> 0 | M35: =IF($I$22=FALSE,0,Tablas!H$369) -> 0
A36: Medicamentos por receta | C36: $6,000 por Asegurado, por año póliza | F36: TOTAL PRIMA NETA : | H36: n/a | I36: =SUM(I31:I35) -> 8454 | J36: 6158 | K36: 4625 | L36: 3687 | M36: 2717
A37: Almacenamiento de sangre de cordon umbilical | C37: $500 (Excepto planes 4,5, y 6) | F37: Costo Administrativo Anual : | H37: n/a | I37: 75 | J37: 75 | K37: 75 | L37: 75 | M37: 75
F38: GRAN TOTAL : | H38: n/a | I38: =SUM(I36:I37) -> 8529 | J38: =SUM(J36:J37) -> 6233 | K38: =SUM(K36:K37) -> 4700 | L38: =SUM(L36:L37) -> 3762 | M38: =SUM(M36:M37) -> 2792
A39: Atención médica en el hogar | C39: 100% de usual/acostumbrado y razonable
A40: Rehabilitación | C40: 100% de usual/acostumbrado y razonable | F40: Tarifas Semestrales
A41: Residencia y cuidados paliativos | C41: 100% de usual/acostumbrado y razonable | F41: Prima de Titular : | H41: n/a | I41: =VLOOKUP($M$16,Tablas!$A$374:$H$397,4,TRUE) -> 2706.71 | J41: =VLOOKUP($M$16,Tablas!$A$374:$H$397,5,TRUE) -> 2036.26 | K41: =VLOOKUP($M$16,Tablas!$A$374:$H$397,6,TRUE) -> 1508.38 | L41: =VLOOKUP($M$16,Tablas!$A$374:$H$397,7,TRUE) -> 1134.2 | M41: =VLOOKUP($M$16,Tablas!$A$374:$H$397,8,TRUE) -> 891.99
A42: Cobertura de actividades peligrosas | C42: 1 | F42: Prima de Cónyuge | H42: n/a | I42: =IF($J$16=1,0,(VLOOKUP($M$18,Tablas!$A$374:$H$397,4,TRUE))) -> 0 | J42: =IF($J$16=1,0,(VLOOKUP($M$18,Tablas!$A$374:$H$397,5,TRUE))) -> 0 | K42: =IF($J$16=1,0,(VLOOKUP($M$18,Tablas!$A$374:$H$397,6,TRUE))) -> 0 | L42: =IF($J$16=1,0,(VLOOKUP($M$18,Tablas!$A$374:$H$397,7,TRUE))) -> 0 | M42: =IF($J$16=1,0,(VLOOKUP($M$18,Tablas!$A$374:$H$397,8,TRUE))) -> 0
A43: Chequeos generales de rutina | C43: Hasta US$150 por año póliza.Sin deducible | F43: Primas Hijos : | H43: n/a | I43: =IF($J$18=0,0,(VLOOKUP($J$18,Tablas!$A$398:$H$400,4,TRUE))) -> 1773.91 | J43: =IF($J$18=0,0,(VLOOKUP($J$18,Tablas!$A$398:$H$400,5,TRUE))) -> 1227.48 | K43: =IF($J$18=0,0,(VLOOKUP($J$18,Tablas!$A$398:$H$400,6,TRUE))) -> 942.87 | L43: =IF($J$18=0,0,(VLOOKUP($J$18,Tablas!$A$398:$H$400,7,TRUE))) -> 819.91 | M43: =IF($J$18=0,0,(VLOOKUP($J$18,Tablas!$A$398:$H$400,8,TRUE))) -> 548.02
A44: Cobertura de VIH, SIDA, CAS | C44: Solo como efecto de transfusión de sangre | F44: Prima Rider Complic. Maternidad | H44: n/a | I44: =+IF($I$20=FALSE,0,Tablas!D$401) -> 0 | J44: =+IF($I$20=FALSE,0,Tablas!E$401) -> 0 | K44: =+IF($I$20=FALSE,0,Tablas!F$401) -> 0 | L44: =+IF($I$20=FALSE,0,Tablas!G$401) -> 0 | M44: =+IF($I$20=FALSE,0,Tablas!H$401) -> 0
A45: Cobertura de brazos y piernas artificiales | C45: $30,000 por año y hasta $120,000 de por vida | F45: Prima Rider Trasplante Organos | H45: n/a | I45: =IF($I$22=FALSE,0,Tablas!D$402) -> 0 | J45: =IF($I$22=FALSE,0,Tablas!E$402) -> 0 | K45: =IF($I$22=FALSE,0,Tablas!F$402) -> 0 | L45: =IF($I$22=FALSE,0,Tablas!G$402) -> 0 | M45: =IF($I$22=FALSE,0,Tablas!H$402) -> 0
A46: Cobertura extendida para dependientes en caso de muerte de asegurado principal | C46: 2 años sin costo | F46: TOTAL PRIMA NETA : | H46: n/a | I46: =SUM(I41:I45) -> 4480.62 | J46: 3263.74 | K46: 2451.25 | L46: 1954.11 | M46: 1440.01
F47: Costo Administrativo Anual : | H47: n/a | I47: 75 | J47: 75 | K47: 75 | L47: 75 | M47: 75
F48: GRAN TOTAL (1ra Cuota) : | H48: n/a | I48: =SUM(I46:I47) -> 4555.62 | J48: =SUM(J46:J47) -> 3338.74 | K48: =SUM(K46:K47) -> 2526.25 | L48: =SUM(L46:L47) -> 2029.11 | M48: =SUM(M46:M47) -> 1515.01
F49: GRAN TOTAL (2da Cuota) : | H49: n/a | I49: =I46 -> 4480.62 | J49: =J46 -> 3263.74 | K49: 2451.25 | L49: 1954.11 | M49: 1440.01
F50: Tarifas en US $ - Válidas desde 01 Ene 2013

Sheet Secure
C10: Cotización de Seguro Médico Internacional - Bupa SECURE Care
H12: =+'INGRESO DE DATOS'!$D$12 -> NOMBRE COMPLETO
H14: =+'INGRESO DE DATOS'!$D$21 -> AGENCIA
J16: =+'INGRESO DE DATOS'!$G$14 -> 1 | M16: =+'INGRESO DE DATOS'!$G$16 -> 25
F17: FECHA DE COTIZACION :
F18: =NOW() -> 2021-11-04T17:01:35.340 | J18: =+'INGRESO DE DATOS'!$J$14 -> 2 | M18: =+'INGRESO DE DATOS'!$J$16 -> 18
I20: FALSE | K20: COMPLICACIONES DE MATERNIDAD
I22: TRUE | K22: TRASPLANTE DE ORGANOS
F25: Deducibles | H25: PLAN 1 | I25: PLAN 2 | J25: PLAN 3 | K25: PLAN 4 | L25: PLAN 5 | M25: PLAN 6
F26: Dentro del pais de residencia | H26: n/a | I26: 1000 | J26: 2000 | K26: 5000 | L26: 10000 | M26: 20000
F27: Fuera del pais de residencia | H27: n/a | I27: 2000 | J27: 3000 | K27: 5000 | L27: 10000 | M27: 20000
F30: Tarifas Anuales
F31: Prima de Titular : | H31: n/a | I31: =VLOOKUP($M$16,Tablas!$A$408:$H$431,4,TRUE) -> 4956 | J31: =VLOOKUP($M$16,Tablas!$A$408:$H$431,5,TRUE) -> 3970 | K31: =VLOOKUP($M$16,Tablas!$A$408:$H$431,6,TRUE) -> 2926 | L31: =VLOOKUP($M$16,Tablas!$A$408:$H$431,7,TRUE) -> 2488 | M31: =VLOOKUP($M$16,Tablas!$A$408:$H$431,8,TRUE) -> 1882
F32: Prima de Cónyuge | H32: n/a | I32: =IF($J$16=1,0,(VLOOKUP($M$18,Tablas!$A$408:$H$431,4,TRUE))) -> 0 | J32: =IF($J$16=1,0,(VLOOKUP($M$18,Tablas!$A$408:$H$431,5,TRUE))) -> 0 | K32: =IF($J$16=1,0,(VLOOKUP($M$18,Tablas!$A$408:$H$431,6,TRUE))) -> 0 | L32: =IF($J$16=1,0,(VLOOKUP($M$18,Tablas!$A$408:$H$431,7,TRUE))) -> 0 | M32: =IF($J$16=1,0,(VLOOKUP($M$18,Tablas!$A$408:$H$431,8,TRUE))) -> 0
F33: Primas Hijos : | H33: n/a | I33: =IF($J$18=0,0,(VLOOKUP($J$18,Tablas!$A$432:$H$434,4,TRUE))) -> 3658 | J33: =IF($J$18=0,0,(VLOOKUP($J$18,Tablas!$A$432:$H$434,5,TRUE))) -> 1901 | K33: =IF($J$18=0,0,(VLOOKUP($J$18,Tablas!$A$432:$H$434,6,TRUE))) -> 1667 | L33: =IF($J$18=0,0,(VLOOKUP($J$18,Tablas!$A$432:$H$434,7,TRUE))) -> 1416 | M33: =IF($J$18=0,0,(VLOOKUP($J$18,Tablas!$A$432:$H$434,8,TRUE))) -> 1047
F34: Prima Rider Complic. Maternidad | H34: n/a | I34: =+IF($I$20=FALSE,0,Tablas!D$435) -> 0 | J34: =+IF($I$20=FALSE,0,Tablas!E$435) -> 0 | K34: =+IF($I$20=FALSE,0,Tablas!F$435) -> 0 | L34: =+IF($I$20=FALSE,0,Tablas!G$435) -> 0 | M34: =+IF($I$20=FALSE,0,Tablas!H$435) -> 0
F35: Prima Rider Trasplante Organos | H35: n/a | I35: =IF($I$22=FALSE,0,Tablas!D$436) -> 300 | J35: =IF($I$22=FALSE,0,Tablas!E$436) -> 300 | K35: =IF($I$22=FALSE,0,Tablas!F$436) -> 300 | L35: =IF($I$22=FALSE,0,Tablas!G$436) -> 300 | M35: =IF($I$22=FALSE,0,Tablas!H$436) -> 300
F36: TOTAL PRIMA NETA : | H36: n/a | I36: =SUM(I31:I35) -> 8914 | J36: 6171 | K36: 4893 | L36: 4204 | M36: 3229
F37: Costo Administrativo Anual : | H37: n/a | I37: 75 | J37: 75 | K37: 75 | L37: 75 | M37: 75
F38: GRAN TOTAL : | H38: n/a | I38: =SUM(I36:I37) -> 8989 | J38: =SUM(J36:J37) -> 6246 | K38: =SUM(K36:K37) -> 4968 | L38: =SUM(L36:L37) -> 4279 | M38: =SUM(M36:M37) -> 3304
F40: Tarifas Semestrales
F41: Prima de Titular : | H41: n/a | I41: =VLOOKUP($M$16,Tablas!$A$441:$H$464,4,TRUE) -> 2626.68 | J41: =VLOOKUP($M$16,Tablas!$A$441:$H$464,5,TRUE) -> 2104.1 | K41: =VLOOKUP($M$16,Tablas!$A$441:$H$464,6,TRUE) -> 1550.78 | L41: =VLOOKUP($M$16,Tablas!$A$441:$H$464,7,TRUE) -> 1318.64 | M41: =VLOOKUP($M$16,Tablas!$A$441:$H$464,8,TRUE) -> 997.46
F42: Prima de Cónyuge | H42: n/a | I42: =IF($J$16=1,0,(VLOOKUP($M$18,Tablas!$A$441:$H$464,4,TRUE))) -> 0 | J42: =IF($J$16=1,0,(VLOOKUP($M$18,Tablas!$A$441:$H$464,5,TRUE))) -> 0 | K42: =IF($J$16=1,0,(VLOOKUP($M$18,Tablas!$A$441:$H$464,6,TRUE))) -> 0 | L42: =IF($J$16=1,0,(VLOOKUP($M$18,Tablas!$A$441:$H$464,7,TRUE))) -> 0 | M42: =IF($J$16=1,0,(VLOOKUP($M$18,Tablas!$A$441:$H$464,8,TRUE))) -> 0
F43: Primas Hijos : | H43: n/a | I43: =IF($J$18=0,0,(VLOOKUP($J$18,Tablas!$A$465:$H$467,4,TRUE))) -> 1938.74 | J43: =IF($J$18=0,0,(VLOOKUP($J$18,Tablas!$A$465:$H$467,5,TRUE))) -> 1007.53 | K43: =IF($J$18=0,0,(VLOOKUP($J$18,Tablas!$A$465:$H$467,6,TRUE))) -> 883.51 | L43: =IF($J$18=0,0,(VLOOKUP($J$18,Tablas!$A$465:$H$467,7,TRUE))) -> 750.48 | M43: =IF($J$18=0,0,(VLOOKUP($J$18,Tablas!$A$465:$H$467,8,TRUE))) -> 554.91
F44: Prima Rider Complic. Maternidad | H44: n/a | I44: =+IF($I$20=FALSE,0,Tablas!D$468) -> 0 | J44: =+IF($I$20=FALSE,0,Tablas!E$468) -> 0 | K44: =+IF($I$20=FALSE,0,Tablas!F$468) -> 0 | L44: =+IF($I$20=FALSE,0,Tablas!G$468) -> 0 | M44: =+IF($I$20=FALSE,0,Tablas!H$468) -> 0
F45: Prima Rider Trasplante Organos | H45: n/a | I45: =IF($I$22=FALSE,0,Tablas!D$469) -> 159 | J45: =IF($I$22=FALSE,0,Tablas!E$469) -> 159 | K45: =IF($I$22=FALSE,0,Tablas!F$469) -> 159 | L45: =IF($I$22=FALSE,0,Tablas!G$469) -> 159 | M45: =IF($I$22=FALSE,0,Tablas!H$469) -> 159
F46: TOTAL PRIMA NETA : | H46: n/a | I46: =SUM(I41:I45) -> 4724.42 | J46: 3270.63 | K46: 2593.29 | L46: 2228.12 | M46: 1711.37
F47: Costo Administrativo Anual : | H47: n/a | I47: 75 | J47: 75 | K47: 75 | L47: 75 | M47: 75
F48: GRAN TOTAL (1ra Cuota) : | H48: n/a | I48: =SUM(I46:I47) -> 4799.42 | J48: =SUM(J46:J47) -> 3345.63 | K48: =SUM(K46:K47) -> 2668.29 | L48: =SUM(L46:L47) -> 2303.12 | M48: =SUM(M46:M47) -> 1786.37
F49: GRAN TOTAL (2da Cuota) : | H49: n/a | I49: =I46 -> 4724.42 | J49: =J46 -> 3270.63 | K49: 2593.29 | L49: 2228.12 | M49: 1711.37
F50: Tarifas en US $ - Válidas desde 01 enero 2022
F52: Este presupuesto solamente tiene carácter informativo y en ningún momento expresa compromiso legal para suministrarle cobertura de seguro. La emisión de una póliza de seguro Bupa está sujeta a todas las evaluaciones de riesgo por parte de Bupa y a la recepción de todos los pagos de prima requeridos.

Sheet Essential (hidden)
C10: Cotización de Seguro Médico Internacional - Bupa ESSENTIAL Care
H12: =+'INGRESO DE DATOS'!$D$12 -> NOMBRE COMPLETO
H14: =+'INGRESO DE DATOS'!$D$21 -> AGENCIA
J16: =+'INGRESO DE DATOS'!$G$14 -> 1 | M16: =+'INGRESO DE DATOS'!$G$16 -> 25
F17: FECHA DE COTIZACION :
F18: =NOW() -> 2021-11-04T17:01:35.340 | J18: =+'INGRESO DE DATOS'!$J$14 -> 2 | M18: =+'INGRESO DE DATOS'!$J$16 -> 18
I20: FALSE | K20: COMPLICACIONES DE MATERNIDAD
I22: TRUE | K22: TRASPLANTE DE ORGANOS
F25: Deducibles | H25: PLAN 1 | I25: PLAN 2 | J25: PLAN 3 | K25: PLAN 4 | L25: PLAN 5 | M25: PLAN 6
F26: Dentro del pais de residencia | H26: n/a | I26: 1000 | J26: 2000 | K26: 5000 | L26: 10000 | M26: 20000
F27: Fuera del pais de residencia | H27: n/a | I27: 2000 | J27: 3000 | K27: 5000 | L27: 10000 | M27: 20000
F30: Tarifas Anuales
F31: Prima de Titular : | H31: n/a | I31: =VLOOKUP($M$16,Tablas!$A$475:$H$498,4,TRUE) -> 4204 | J31: =VLOOKUP($M$16,Tablas!$A$475:$H$498,5,TRUE) -> 3366 | K31: =VLOOKUP($M$16,Tablas!$A$475:$H$498,6,TRUE) -> 2480 | L31: =VLOOKUP($M$16,Tablas!$A$475:$H$498,7,TRUE) -> 2100 | M31: =VLOOKUP($M$16,Tablas!$A$475:$H$498,8,TRUE) -> 1589
F32: Prima de Cónyuge | H32: n/a | I32: =IF($J$16=1,0,(VLOOKUP($M$18,Tablas!$A$475:$H$498,4,TRUE))) -> 0 | J32: =IF($J$16=1,0,(VLOOKUP($M$18,Tablas!$A$475:$H$498,5,TRUE))) -> 0 | K32: =IF($J$16=1,0,(VLOOKUP($M$18,Tablas!$A$475:$H$498,6,TRUE))) -> 0 | L32: =IF($J$16=1,0,(VLOOKUP($M$18,Tablas!$A$475:$H$498,7,TRUE))) -> 0 | M32: =IF($J$16=1,0,(VLOOKUP($M$18,Tablas!$A$475:$H$498,8,TRUE))) -> 0
F33: Primas Hijos : | H33: n/a | I33: =IF($J$18=0,0,(VLOOKUP($J$18,Tablas!$A$499:$H$501,4,TRUE))) -> 3107 | J33: =IF($J$18=0,0,(VLOOKUP($J$18,Tablas!$A$499:$H$501,5,TRUE))) -> 1611 | K33: =IF($J$18=0,0,(VLOOKUP($J$18,Tablas!$A$499:$H$501,6,TRUE))) -> 1417 | L33: =IF($J$18=0,0,(VLOOKUP($J$18,Tablas!$A$499:$H$501,7,TRUE))) -> 1204 | M33: =IF($J$18=0,0,(VLOOKUP($J$18,Tablas!$A$499:$H$501,8,TRUE))) -> 889
F34: Prima Rider Complic. Maternidad | H34: n/a | I34: =+IF($I$20=FALSE,0,Tablas!D$502) -> 0 | J34: =+IF($I$20=FALSE,0,Tablas!E$502) -> 0 | K34: =+IF($I$20=FALSE,0,Tablas!F$502) -> 0 | L34: =+IF($I$20=FALSE,0,Tablas!G$502) -> 0 | M34: =+IF($I$20=FALSE,0,Tablas!H$502) -> 0
F35: Prima Rider Trasplante Organos | H35: n/a | I35: =IF($I$22=FALSE,0,Tablas!D$503) -> 300 | J35: =IF($I$22=FALSE,0,Tablas!E$503) -> 300 | K35: =IF($I$22=FALSE,0,Tablas!F$503) -> 300 | L35: =IF($I$22=FALSE,0,Tablas!G$503) -> 300 | M35: =IF($I$22=FALSE,0,Tablas!H$503) -> 300
F36: TOTAL PRIMA NETA : | H36: n/a | I36: =SUM(I31:I35) -> 7611 | J36: 5277 | K36: 4197 | L36: 3604 | M36: 2778
F37: Costo Administrativo Anual : | H37: n/a | I37: 75 | J37: 75 | K37: 75 | L37: 75 | M37: 75
F38: GRAN TOTAL : | H38: n/a | I38: =SUM(I36:I37) -> 7686 | J38: =SUM(J36:J37) -> 5352 | K38: =SUM(K36:K37) -> 4272 | L38: =SUM(L36:L37) -> 3679 | M38: =SUM(M36:M37) -> 2853
F40: Tarifas Semestrales
F41: Prima de Titular : | H41: n/a | I41: =VLOOKUP($M$16,Tablas!$A$508:$H$531,4,TRUE) -> 2228.12 | J41: =VLOOKUP($M$16,Tablas!$A$508:$H$531,5,TRUE) -> 1783.98 | K41: =VLOOKUP($M$16,Tablas!$A$508:$H$531,6,TRUE) -> 1314.4 | L41: =VLOOKUP($M$16,Tablas!$A$508:$H$531,7,TRUE) -> 1113 | M41: =VLOOKUP($M$16,Tablas!$A$508:$H$531,8,TRUE) -> 842.17
F42: Prima de Cónyuge | H42: n/a | I42: =IF($J$16=1,0,(VLOOKUP($M$18,Tablas!$A$508:$H$531,4,TRUE))) -> 0 | J42: =IF($J$16=1,0,(VLOOKUP($M$18,Tablas!$A$508:$H$531,5,TRUE))) -> 0 | K42: =IF($J$16=1,0,(VLOOKUP($M$18,Tablas!$A$508:$H$531,6,TRUE))) -> 0 | L42: =IF($J$16=1,0,(VLOOKUP($M$18,Tablas!$A$508:$H$531,7,TRUE))) -> 0 | M42: =IF($J$16=1,0,(VLOOKUP($M$18,Tablas!$A$508:$H$531,8,TRUE))) -> 0
F43: Primas Hijos : | H43: n/a | I43: =IF($J$18=0,0,(VLOOKUP($J$18,Tablas!$A$532:$H$534,4,TRUE))) -> 1646.71 | J43: =IF($J$18=0,0,(VLOOKUP($J$18,Tablas!$A$532:$H$534,5,TRUE))) -> 853.83 | K43: =IF($J$18=0,0,(VLOOKUP($J$18,Tablas!$A$532:$H$534,6,TRUE))) -> 751.01 | L43: =IF($J$18=0,0,(VLOOKUP($J$18,Tablas!$A$532:$H$534,7,TRUE))) -> 638.12 | M43: =IF($J$18=0,0,(VLOOKUP($J$18,Tablas!$A$532:$H$534,8,TRUE))) -> 471.17
F44: Prima Rider Complic. Maternidad | H44: n/a | I44: =+IF($I$20=FALSE,0,Tablas!D$535) -> 0 | J44: =+IF($I$20=FALSE,0,Tablas!E$535) -> 0 | K44: =+IF($I$20=FALSE,0,Tablas!F$535) -> 0 | L44: =+IF($I$20=FALSE,0,Tablas!G$535) -> 0 | M44: =+IF($I$20=FALSE,0,Tablas!H$535) -> 0
F45: Prima Rider Trasplante Organos | H45: n/a | I45: =IF($I$22=FALSE,0,Tablas!D$536) -> 159 | J45: =IF($I$22=FALSE,0,Tablas!E$536) -> 159 | K45: =IF($I$22=FALSE,0,Tablas!F$536) -> 159 | L45: =IF($I$22=FALSE,0,Tablas!G$536) -> 159 | M45: =IF($I$22=FALSE,0,Tablas!H$536) -> 159
F46: TOTAL PRIMA NETA : | H46: n/a | I46: =SUM(I41:I45) -> 4033.83 | J46: 2796.81 | K46: 2224.41 | L46: 1910.12 | M46: 1472.34
F47: Costo Administrativo Anual : | H47: n/a | I47: 75 | J47: 75 | K47: 75 | L47: 75 | M47: 75
F48: GRAN TOTAL (1ra Cuota) : | H48: n/a | I48: =SUM(I46:I47) -> 4108.83 | J48: =SUM(J46:J47) -> 2871.81 | K48: =SUM(K46:K47) -> 2299.41 | L48: =SUM(L46:L47) -> 1985.12 | M48: =SUM(M46:M47) -> 1547.34
F49: GRAN TOTAL (2da Cuota) : | H49: n/a | I49: =I46 -> 4033.83 | J49: =J46 -> 2796.81 | K49: 2224.41 | L49: 1910.12 | M49: 1472.34
F50: Tarifas en US $ - Válidas desde 01 enero 2021
F52: Este presupuesto solamente tiene carácter informativo y en ningún momento expresa compromiso legal para suministrarle cobertura de seguro. La emisión de una póliza de seguro Bupa está sujeta a todas las evaluaciones de riesgo por parte de Bupa y a la recepción de todos los pagos de prima requeridos.

Sheet Critical
C10: Cotización de Seguro Médico Internacional - Bupa CRITICAL Care
H12: =+'INGRESO DE DATOS'!$D$12 -> NOMBRE COMPLETO
H14: =+'INGRESO DE DATOS'!$D$21 -> AGENCIA
J16: =+'INGRESO DE DATOS'!$G$14 -> 1 | M16: =+'INGRESO DE DATOS'!$G$16 -> 25
F17: FECHA DE COTIZACION :
F18: =NOW() -> 2021-11-04T17:01:35.340 | J18: =+'INGRESO DE DATOS'!$J$14 -> 2 | M18: =+'INGRESO DE DATOS'!$J$16 -> 18
J20: TRUE | M20: =IF(M16>=M18,M16,M18) -> 25
F22: CONDICION CRITICA CUBIERTA | I22: MAXIMO POR AÑO POLIZA | K22: TRASPLANTE DE ORGANOS
F24: Enfermedades neurológicas y accidentes cerebro-vasculares | I24: 150000 | K24: Tipo de trasplante | M24: Máximo Vitalicio
I25: por asegurado por año póliza | M25: por persona
F26: Cirugías cardíacas y angioplastías | I26: 150000 | K26: Corazón | M26: 300000
I27: por asegurado por año póliza | K27: Corazón y Pulmón (simultáneamente) | M27: 300000
F28: Tratamiento de cáncer | I28: 200000 | K28: Pulmón | M28: 250000
I29: por asegurado por año póliza | K29: Pancreas | M29: 250000
F30: Trauma grave (Politraumatismos) | I30: 150000 | K30: Pancreas y Riñón (simultáneamente) | M30: 300000
I31: por asegurado por año póliza | K31: Riñón | M31: 200000
F32: Insuficiencia renal crónica (Diálisis) | I32: 100000 | K32: Hígado | M32: 200000
I33: por asegurado por año póliza | K33: Médula ósea | M33: 250000
F34: Quemaduras graves | I34: 300000 | K34: La cobertura de trasplante de órganos está limitada a la Red de Proveedores para Procedimiento de Trasplante de la Compañía y no se proporcionará cobertura en proveedores fuera de esta Red especializada.
I35: por asegurado por año póliza
F36: Desorden infeccioso grave (Septicemia) | I36: 150000
I37: por asegurado por año póliza
F39: Deducibles | H39: PLAN 1 | I39: PLAN 2 | J39: PLAN 3 | K39: PLAN 4 | L39: PLAN 5 | M39: PLAN 6
F40: Dentro del pais de residencia | H40: 2000 | I40: 3500 | J40: 5000 | K40: 10000 | L40: 20000 | M40: 50000
F41: Fuera del pais de residencia | H41: 2000 | I41: 3500 | J41: 5000 | K41: 10000 | L41: 20000 | M41: 50000
F43: Tarifas Anuales
F44: Prima por plan individual : | H44: =IF((($J$16+$J$18)=1),(VLOOKUP($M$20,Tablas!$A$543:$T$544,3,TRUE)),0) -> 0 | I44: =IF((($J$16+$J$18)=1),(VLOOKUP($M$20,Tablas!$A$543:$T$544,6,TRUE)),0) -> 0 | J44: =IF((($J$16+$J$18)=1),(VLOOKUP($M$20,Tablas!$A$543:$T$544,9,TRUE)),0) -> 0 | K44: =IF((($J$16+$J$18)=1),(VLOOKUP($M$20,Tablas!$A$543:$T$544,12,TRUE)),0) -> 0 | L44: =IF((($J$16+$J$18)=1),(VLOOKUP($M$20,Tablas!$A$543:$T$544,15,TRUE)),0) -> 0 | M44: =IF((($J$16+$J$18)=1),(VLOOKUP($M$20,Tablas!$A$543:$T$544,18,TRUE)),0) -> 0
F45: Prima por plan para 2 personas : | H45: =IF((($J$16+$J$18)=2),(VLOOKUP($M$20,Tablas!$A$543:$T$544,4,TRUE)),0) -> 0 | I45: =IF((($J$16+$J$18)=2),(VLOOKUP($M$20,Tablas!$A$543:$T$544,7,TRUE)),0) -> 0 | J45: =IF((($J$16+$J$18)=2),(VLOOKUP($M$20,Tablas!$A$543:$T$544,10,TRUE)),0) -> 0 | K45: =IF((($J$16+$J$18)=2),(VLOOKUP($M$20,Tablas!$A$543:$T$544,13,TRUE)),0) -> 0 | L45: =IF((($J$16+$J$18)=2),(VLOOKUP($M$20,Tablas!$A$543:$T$544,16,TRUE)),0) -> 0 | M45: =IF((($J$16+$J$18)=2),(VLOOKUP($M$20,Tablas!$A$543:$T$544,19,TRUE)),0) -> 0
F46: Prima por plan familiar : | H46: =IF((($J$16+$J$18)>=3),(VLOOKUP($M$20,Tablas!$A$543:$T$544,5,TRUE)),0) -> 6741 | I46: =IF((($J$16+$J$18)>=3),(VLOOKUP($M$20,Tablas!$A$543:$T$544,8,TRUE)),0) -> 5180 | J46: =IF((($J$16+$J$18)>=3),(VLOOKUP($M$20,Tablas!$A$543:$T$544,11,TRUE)),0) -> 4467 | K46: =IF((($J$16+$J$18)>=3),(VLOOKUP($M$20,Tablas!$A$543:$T$544,14,TRUE)),0) -> 3369 | L46: =IF((($J$16+$J$18)>=3),(VLOOKUP($M$20,Tablas!$A$543:$T$544,17,TRUE)),0) -> 2392 | M46: =IF((($J$16+$J$18)>=3),(VLOOKUP($M$20,Tablas!$A$543:$T$544,20,TRUE)),0) -> 1353
F47: TOTAL PRIMA NETA : | H47: =SUM(H44:H46) -> 6741 | I47: =SUM(I44:I46) -> 5180 | J47: 4467 | K47: 3369 | L47: 2392 | M47: 1353
F48: Costo Administrativo Anual : | H48: 75 | I48: 75 | J48: 75 | K48: 75 | L48: 75 | M48: 75
F49: GRAN TOTAL : | H49: =SUM(H47:H48) -> 6816 | I49: 5255 | J49: 4542 | K49: 3444 | L49: 2467 | M49: 1428
F50: Tarifas en US $ - Válidas desde 01 enero 2022
F53: Este presupuesto solamente tiene carácter informativo y en ningún momento expresa compromiso legal para suministrarle cobertura de seguro. La emisión de una póliza de seguro Bupa está sujeta a todas las evaluaciones de riesgo por parte de Bupa y a la recepción de todos los pagos de prima requeridos.

Sheet Resumen tarifas anuales
C12: Cotización de Seguro Médico Internacional - BUPA CARE
C14: =+'INGRESO DE DATOS'!$D$12 -> NOMBRE COMPLETO
C16: =+'INGRESO DE DATOS'!$D$21 -> AGENCIA
E18: =+'INGRESO DE DATOS'!$G$14 -> 1 | H18: =+'INGRESO DE DATOS'!$G$16 -> 25
A19: FECHA DE COTIZACION :
A20: =NOW() -> 2021-11-04T17:01:35.340 | E20: =+'INGRESO DE DATOS'!$J$14 -> 2 | H20: =+'INGRESO DE DATOS'!$J$16 -> 18
A22: Deducibles | C22: PLAN 1 | D22: PLAN 2 | E22: PLAN 3 | F22: PLAN 4 | G22: PLAN 5 | H22: PLAN 6
A23: Dentro del pais de residencia | C23: n/a | D23: 1000 | E23: 2000 | F23: 5000 | G23: 10000 | H23: 20000
A24: Fuera del pais de residencia | C24: n/a | D24: 2000 | E24: 3000 | F24: 5000 | G24: 10000 | H24: 20000
A26: PRODUCTOS | C26: Tarifas Anuales
A27: Bupa Exclusive Care | C27: n/a | D27: =+Exclusive!I37 -> 17039 | E27: =+Exclusive!J37 -> 12123 | F27: =+Exclusive!K37 -> 9178 | G27: =+Exclusive!L37 -> 6937 | H27: =+Exclusive!M37 -> 5500
A28: Bupa Privilege Care | C28: n/a | D28: =+Privilege!I37 -> 14353 | E28: =+Privilege!J37 -> 10462 | F28: =+Privilege!K37 -> 7748 | G28: =+Privilege!L37 -> 5840 | H28: =+Privilege!M37 -> 4469
A29: Bupa Advantage Care | C29: n/a | D29: =+'Advantage (Mundial)'!I38 -> 11267 | E29: =+'Advantage (Mundial)'!J38 -> 8316 | F29: =+'Advantage (Mundial)'!K38 -> 6333 | G29: =+'Advantage (Mundial)'!L38 -> 5134 | H29: =+'Advantage (Mundial)'!M38 -> 3893
A30: Bupa Secure Care | C30: n/a | D30: =+Secure!I38 -> 8989 | E30: =+Secure!J38 -> 6246 | F30: =+Secure!K38 -> 4968 | G30: =+Secure!L38 -> 4279 | H30: =+Secure!M38 -> 3304
A31: Bupa Essential Care | C31: n/a | D31: =+Essential!I38 -> 7686 | E31: =+Essential!J38 -> 5352 | F31: =+Essential!K38 -> 4272 | G31: =+Essential!L38 -> 3679 | H31: =+Essential!M38 -> 2853
A33: Deducibles | C33: PLAN 1 | D33: PLAN 2 | E33: PLAN 3 | F33: PLAN 4 | G33: PLAN 5 | H33: PLAN 6
A34: Dentro del pais de residencia | C34: 2000 | D34: 3500 | E34: 5000 | F34: 10000 | G34: 20000 | H34: 50000
A35: Fuera del pais de residencia | C35: 2000 | D35: 3500 | E35: 5000 | F35: 10000 | G35: 20000 | H35: 50000
C36: Tarifas Anuales
A37: Bupa Critical Care | C37: =+Critical!H49 -> 6816 | D37: =+Critical!I49 -> 5255 | E37: =+Critical!J49 -> 4542 | F37: =+Critical!K49 -> 3444 | G37: =+Critical!L49 -> 2467 | H37: =+Critical!M49 -> 1428
A38: Tarifas en US $ - Válidas desde 01 enero 2022
A40: Este presupuesto solamente tiene carácter informativo y en ningún momento expresa compromiso legal para suministrarle cobertura de seguro. La emisión de una póliza de seguro Bupa está sujeta a todas las evaluaciones de riesgo por parte de Bupa y a la recepción de todos los pagos de prima requeridos.

Sheet Comparacion de Beneficios
B2: 2022 BUPA CARE COMPARACION DE BENEFICIOS

Sheet Tablas (hidden)
A2: EXCLUSIVE | J2: FACTOR SEMESTRAL : | L2: 0.53
A3: TARIFAS ANUALES
A4: EDAD
D5: DW2 | E5: DW3 | F5: DW4 | G5: DW5 | H5: DW6
A6: 18 | B6: - 24 | D6: 10598 | E6: 7011 | F6: 4887 | G6: 3412 | H6: 2686 | J6: TRUE | K6: TRUE | L6: TRUE | M6: TRUE | N6: TRUE
A7: 25 | B7: - 29 | D7: 11116 | E7: 7739 | F7: 5413 | G7: 3777 | H7: 2974 | J7: TRUE | K7: TRUE | L7: TRUE | M7: TRUE | N7: TRUE
A8: 30 | B8: - 34 | D8: 11557 | E8: 8307 | F8: 6060 | G8: 4520 | H8: 3566 | J8: TRUE | K8: TRUE | L8: TRUE | M8: TRUE | N8: TRUE
A9: 35 | B9: - 39 | D9: 12947 | E9: 9298 | F9: 6791 | G9: 5069 | H9: 3995 | J9: TRUE | K9: TRUE | L9: TRUE | M9: TRUE | N9: TRUE
A10: 40 | B10: - 44 | D10: 15006 | E10: 10171 | F10: 7533 | G10: 5571 | H10: 4389 | J10: TRUE | K10: TRUE | L10: TRUE | M10: TRUE | N10: TRUE
A11: 45 | B11: - 49 | D11: 16778 | E11: 11369 | F11: 8419 | G11: 6226 | H11: 4908 | J11: TRUE | K11: TRUE | L11: TRUE | M11: TRUE | N11: TRUE
A12: 50 | B12: - 54 | D12: 21465 | E12: 14911 | F12: 10986 | G12: 8793 | H12: 6933 | J12: TRUE | K12: TRUE | L12: TRUE | M12: TRUE | N12: TRUE
A13: 55 | B13: - 59 | D13: 22836 | E13: 15864 | F13: 11685 | G13: 9352 | H13: 7378 | J13: TRUE | K13: TRUE | L13: TRUE | M13: TRUE | N13: TRUE
A14: 60 | D14: 24877 | E14: 17309 | F14: 13442 | G14: 11264 | H14: 9163 | J14: TRUE | K14: TRUE | L14: TRUE | M14: TRUE | N14: TRUE
A15: 61 | D15: 26723 | E15: 18594 | F15: 14436 | G15: 12109 | H15: 9846 | J15: TRUE | K15: TRUE | L15: TRUE | M15: TRUE | N15: TRUE
A16: 62 | D16: 29260 | E16: 20367 | F16: 15812 | G16: 13247 | H16: 10784 | J16: TRUE | K16: TRUE | L16: TRUE | M16: TRUE | N16: TRUE
A17: 63 | D17: 31114 | E17: 21654 | F17: 16800 | G17: 14090 | H17: 11462 | J17: TRUE | K17: TRUE | L17: TRUE | M17: TRUE | N17: TRUE
A18: 64 | D18: 33649 | E18: 23429 | F18: 18177 | G18: 15245 | H18: 12399 | J18: TRUE | K18: TRUE | L18: TRUE | M18: TRUE | N18: TRUE
A19: 65 | D19: 43987 | E19: 30556 | F19: 22981 | G19: 20325 | H19: 17479 | J19: TRUE | K19: TRUE | L19: TRUE | M19: TRUE | N19: TRUE
A20: 66 | D20: 51095 | E20: 35501 | F20: 26710 | G20: 23621 | H20: 20313 | J20: TRUE | K20: TRUE | L20: TRUE | M20: TRUE | N20: TRUE
A21: 67 | D21: 55819 | E21: 38773 | F21: 29173 | G21: 25796 | H21: 22186 | J21: TRUE | K21: TRUE | L21: TRUE | M21: TRUE | N21: TRUE
A22: 68 | D22: 61797 | E22: 42936 | F22: 32300 | G22: 28567 | H22: 24569 | J22: TRUE | K22: TRUE | L22: TRUE | M22: TRUE | N22: TRUE
A23: 69 | D23: 67994 | E23: 47236 | F23: 35533 | G23: 31427 | H23: 27033 | J23: TRUE | K23: TRUE | L23: TRUE | M23: TRUE | N23: TRUE
A24: 70 | D24: 83681 | E24: 57512 | F24: 41833 | G24: 36619 | H24: 31791 | J24: TRUE | K24: TRUE | L24: TRUE | M24: TRUE | N24: TRUE
A25: 71 | D25: 86966 | E25: 59770 | F25: 43474 | G25: 38059 | H25: 33043 | J25: TRUE | K25: TRUE | L25: TRUE | M25: TRUE | N25: TRUE
A26: 72 | D26: 89429 | E26: 61457 | F26: 44698 | G26: 39138 | H26: 33983 | J26: TRUE | K26: TRUE | L26: TRUE | M26: TRUE | N26: TRUE
A27: 73 | D27: 92714 | E27: 63716 | F27: 46343 | G27: 40580 | H27: 35231 | J27: TRUE | K27: TRUE | L27: TRUE | M27: TRUE | N27: TRUE
A28: 74 | D28: 94352 | E28: 64842 | F28: 47162 | G28: 41294 | H28: 35858 | J28: TRUE | K28: TRUE | L28: TRUE | M28: TRUE | N28: TRUE
A29: 75 | B29: o más | D29: 98465 | E29: 67661 | F29: 49216 | G29: 43099 | H29: 37414 | J29: TRUE | K29: TRUE | L29: TRUE | M29: TRUE | N29: TRUE
A30: 1 | B30: Hijo | D30: 3680 | E30: 2709 | F30: 2177 | G30: 1802 | H30: 1409 | J30: TRUE | K30: TRUE | L30: TRUE | M30: TRUE | N30: TRUE
A31: 2 | B31: Hijos | D31: 5848 | E31: 4309 | F31: 3465 | G31: 2860 | H31: 2226 | J31: TRUE | K31: TRUE | L31: TRUE | M31: TRUE | N31: TRUE
A32: 3 | B32: Hijos o más | D32: 8575 | E32: 6320 | F32: 5074 | G32: 4197 | H32: 3268 | J32: TRUE | K32: TRUE | L32: TRUE | M32: TRUE | N32: TRUE
A33: 1 | B33: Rider Comp. Maternidad | D33: 0 | E33: 0 | F33: 225 | G33: 225 | H33: 225
A34: 1 | B34: Transplante de organos | D34: 0 | E34: 0 | F34: 0 | G34: 0 | H34: 0
A36: TARIFAS SEMESTRALES
A37: EDAD
D38: DW2 | E38: DW3 | F38: DW4 | G38: DW5 | H38: DW6
A39: 18 | B39: - 24 | D39: =$L$2*D6 -> 5616.94 | E39: =$L$2*E6 -> 3715.83 | F39: 2590.11 | G39: 1808.36 | H39: 1423.58
A40: 25 | B40: - 29 | D40: =$L$2*D7 -> 5891.48 | E40: 4101.67 | F40: 2868.89 | G40: 2001.81 | H40: 1576.22
A41: 30 | B41: - 34 | D41: 6125.21 | E41: 4402.71 | F41: 3211.8 | G41: 2395.6 | H41: 1889.98
A42: 35 | B42: - 39 | D42: 6861.91 | E42: 4927.94 | F42: 3599.23 | G42: 2686.57 | H42: 2117.35
A43: 40 | B43: - 44 | D43: 7953.18 | E43: 5390.63 | F43: 3992.49 | G43: 2952.63 | H43: 2326.17
A44: 45 | B44: - 49 | D44: 8892.34 | E44: 6025.57 | F44: 4462.07 | G44: 3299.78 | H44: 2601.24
A45: 50 | B45: - 54 | D45: 11376.45 | E45: 7902.83 | F45: 5822.58 | G45: 4660.29 | H45: 3674.49
A46: 55 | B46: - 59 | D46: 12103.08 | E46: 8407.92 | F46: 6193.05 | G46: 4956.56 | H46: 3910.34
A47: 60 | D47: 13184.81 | E47: 9173.77 | F47: 7124.26 | G47: 5969.92 | H47: 4856.39
A48: 61 | D48: 14163.19 | E48: 9854.82 | F48: 7651.08 | G48: 6417.77 | H48: 5218.38
A49: 62 | D49: 15507.8 | E49: 10794.51 | F49: 8380.36 | G49: 7020.91 | H49: 5715.52
A50: 63 | D50: 16490.42 | E50: 11476.62 | F50: 8904 | G50: 7467.7 | H50: 6074.86
A51: 64 | D51: 17833.97 | E51: 12417.37 | F51: 9633.81 | G51: 8079.85 | H51: 6571.47
A52: 65 | D52: 23313.11 | E52: 16194.68 | F52: 12179.93 | G52: 10772.25 | H52: 9263.87
A53: 66 | D53: 27080.35 | E53: 18815.53 | F53: 14156.3 | G53: 12519.13 | H53: 10765.89
A54: 67 | D54: 29584.07 | E54: 20549.69 | F54: 15461.69 | G54: 13671.88 | H54: 11758.58
A55: 68 | D55: 32752.41 | E55: 22756.08 | F55: 17119 | G55: 15140.51 | H55: 13021.57
A56: 69 | D56: 36036.82 | E56: 25035.08 | F56: 18832.49 | G56: 16656.31 | H56: 14327.49
A57: 70 | D57: 44350.93 | E57: 30481.36 | F57: 22171.49 | G57: 19408.07 | H57: 16849.23
A58: 71 | D58: 46091.98 | E58: 31678.1 | F58: 23041.22 | G58: 20171.27 | H58: 17512.79
A59: 72 | D59: 47397.37 | E59: 32572.21 | F59: 23689.94 | G59: 20743.14 | H59: 18010.99
A60: 73 | D60: 49138.42 | E60: 33769.48 | F60: 24561.79 | G60: 21507.4 | H60: 18672.43
A61: 74 | D61: 50006.56 | E61: 34366.26 | F61: 24995.86 | G61: 21885.82 | H61: 19004.74
A62: 75 | B62: o más | D62: 52186.45 | E62: 35860.33 | F62: 26084.48 | G62: 22842.47 | H62: 19829.42
A63: 1 | B63: Hijo | D63: 1950.4 | E63: 1435.77 | F63: 1153.81 | G63: 955.06 | H63: 746.77
A64: 2 | B64: Hijos | D64: 3099.44 | E64: 2283.77 | F64: 1836.45 | G64: 1515.8 | H64: 1179.78
A65: 3 | B65: Hijos o más | D65: 4544.75 | E65: 3349.6 | F65: 2689.22 | G65: 2224.41 | H65: 1732.04
A66: 1 | B66: Rider Comp. Maternidad | D66: =+D33*$L$2 -> 0 | E66: 0 | F66: 119.25 | G66: 119.25 | H66: 119.25
A67: 1 | B67: Transplante de organos | D67: 0 | E67: 0 | F67: 0 | G67: 0 | H67: 0
A69: DIAMOND (LATINAMERICA ONLY)
A70: TARIFAS ANUALES
A71: EDAD
A73: 18 | B73: - 24
A74: 25 | B74: - 29
A75: 30 | B75: - 34
A76: 35 | B76: - 39
A77: 40 | B77: - 44
A78: 45 | B78: - 49
A79: 50 | B79: - 54
A80: 55 | B80: - 59
A81: 60
A82: 61
A83: 62
A84: 63
A85: 64
A86: 65
A87: 66
A88: 67
A89: 68
A90: 69
A91: 70
A92: 71
A93: 72
A94: 73
A95: 74
A96: 75 | B96: o más
A97: 1 | B97: Hijo
A98: 2 | B98: Hijos
A99: 3 | B99: Hijos o más
A100: 1 | B100: Rider Comp. Maternidad
A101: 1 | B101: Transplante de organos
A103: TARIFAS SEMESTRALES
A104: EDAD
A106: 18 | B106: - 24
A107: 25 | B107: - 29
A108: 30 | B108: - 34
A109: 35 | B109: - 39
A110: 40 | B110: - 44
A111: 45 | B111: - 49
A112: 50 | B112: - 54
A113: 55 | B113: - 59
A114: 60
A115: 61
A116: 62
A117: 63
A118: 64
A119: 65
A120: 66
A121: 67
A122: 68
A123: 69
A124: 70
A125: 71
A126: 72
A127: 73
A128: 74
A129: 75 | B129: o más
A130: 1 | B130: Hijo
A131: 2 | B131: Hijos
A132: 3 | B132: Hijos o más
A133: 1 | B133: Rider Comp. Maternidad
A134: 1 | B134: Transplante de organos
A136: PRIVILEGE
A137: TARIFAS ANUALES
A138: EDAD
D139: CW2 | E139: CW3 | F139: CW4 | G139: CW5 | H139: CW6
A140: 18 | B140: - 24 | D140: 8916 | E140: 6131 | F140: 4242 | G140: 2953 | H140: 2252 | J140: TRUE | K140: TRUE | L140: TRUE | M140: TRUE | N140: TRUE
A141: 25 | B141: - 29 | D141: 9355 | E141: 6786 | F141: 4702 | G141: 3269 | H141: 2489 | J141: TRUE | K141: TRUE | L141: TRUE | M141: TRUE | N141: TRUE
A142: 30 | B142: - 34 | D142: 9773 | E142: 7263 | F142: 5273 | G142: 3955 | H142: 3020 | J142: TRUE | K142: TRUE | L142: TRUE | M142: TRUE | N142: TRUE
A143: 35 | B143: - 39 | D143: 10942 | E143: 8131 | F143: 5905 | G143: 4435 | H143: 3382 | J143: TRUE | K143: TRUE | L143: TRUE | M143: TRUE | N143: TRUE
A144: 40 | B144: - 44 | D144: 12664 | E144: 8907 | F144: 6571 | G144: 4890 | H144: 3733 | J144: TRUE | K144: TRUE | L144: TRUE | M144: TRUE | N144: TRUE
A145: 45 | B145: - 49 | D145: 14148 | E145: 9954 | F145: 7345 | G145: 5465 | H145: 4178 | J145: TRUE | K145: TRUE | L145: TRUE | M145: TRUE | N145: TRUE
A146: 50 | B146: - 54 | D146: 18496 | E146: 13130 | F146: 9637 | G146: 7800 | H146: 5958 | J146: TRUE | K146: TRUE | L146: TRUE | M146: TRUE | N146: TRUE
A147: 55 | B147: - 59 | D147: 19677 | E147: 13970 | F147: 10261 | G147: 8297 | H147: 6346 | J147: TRUE | K147: TRUE | L147: TRUE | M147: TRUE | N147: TRUE
A148: 60 | D148: 21428 | E148: 15174 | F148: 11672 | G148: 9868 | H148: 7929 | J148: TRUE | K148: TRUE | L148: TRUE | M148: TRUE | N148: TRUE
A149: 61 | D149: 23021 | E149: 16291 | F149: 12540 | G149: 10610 | H149: 8513 | J149: TRUE | K149: TRUE | L149: TRUE | M149: TRUE | N149: TRUE
A150: 62 | D150: 25199 | E150: 17845 | F150: 13733 | G150: 11617 | H150: 9322 | J150: TRUE | K150: TRUE | L150: TRUE | M150: TRUE | N150: TRUE
A151: 63 | D151: 26795 | E151: 18973 | F151: 14598 | G151: 12347 | H151: 9913 | J151: TRUE | K151: TRUE | L151: TRUE | M151: TRUE | N151: TRUE
A152: 64 | D152: 28983 | E152: 20528 | F152: 15794 | G152: 13356 | H152: 10727 | J152: TRUE | K152: TRUE | L152: TRUE | M152: TRUE | N152: TRUE
A153: 65 | D153: 37886 | E153: 26773 | F153: 19969 | G153: 17815 | H153: 15124 | J153: TRUE | K153: TRUE | L153: TRUE | M153: TRUE | N153: TRUE
A154: 66 | D154: 44013 | E154: 31110 | F154: 23202 | G154: 20701 | H154: 17576 | J154: TRUE | K154: TRUE | L154: TRUE | M154: TRUE | N154: TRUE
A155: 67 | D155: 48072 | E155: 33982 | F155: 25339 | G155: 22602 | H155: 19196 | J155: TRUE | K155: TRUE | L155: TRUE | M155: TRUE | N155: TRUE
A156: 68 | D156: 53231 | E156: 37620 | F156: 28069 | G156: 25041 | H156: 21254 | J156: TRUE | K156: TRUE | L156: TRUE | M156: TRUE | N156: TRUE
A157: 69 | D157: 58563 | E157: 41384 | F157: 30873 | G157: 27542 | H157: 23387 | J157: TRUE | K157: TRUE | L157: TRUE | M157: TRUE | N157: TRUE
A158: 70 | D158: 72071 | E158: 50398 | F158: 36340 | G158: 32091 | H158: 27510 | J158: TRUE | K158: TRUE | L158: TRUE | M158: TRUE | N158: TRUE
A159: 71 | D159: 74905 | E159: 52374 | F159: 37767 | G159: 33353 | H159: 28594 | J159: TRUE | K159: TRUE | L159: TRUE | M159: TRUE | N159: TRUE
A160: 72 | D160: 77026 | E160: 53859 | F160: 38836 | G160: 34298 | H160: 29396 | J160: TRUE | K160: TRUE | L160: TRUE | M160: TRUE | N160: TRUE
A161: 73 | D161: 79856 | E161: 55838 | F161: 40268 | G161: 35554 | H161: 30485 | J161: TRUE | K161: TRUE | L161: TRUE | M161: TRUE | N161: TRUE
A162: 74 | D162: 81267 | E162: 56821 | F162: 40976 | G162: 36189 | H162: 31023 | J162: TRUE | K162: TRUE | L162: TRUE | M162: TRUE | N162: TRUE
A163: 75 | B163: o más | D163: 84812 | E163: 59295 | F163: 42760 | G163: 37765 | H163: 32368 | J163: TRUE | K163: TRUE | L163: TRUE | M163: TRUE | N163: TRUE
A164: 1 | B164: Hijo | D164: 3094 | E164: 2264 | F164: 1726 | G164: 1428 | H164: 1054 | J164: TRUE | K164: TRUE | L164: TRUE | M164: TRUE | N164: TRUE
A165: 2 | B165: Hijos | D165: 4923 | E165: 3601 | F165: 2746 | G165: 2271 | H165: 1680 | J165: TRUE | K165: TRUE | L165: TRUE | M165: TRUE | N165: TRUE
A166: 3 | B166: Hijos o más | D166: 7205 | E166: 5279 | F166: 4020 | G166: 3326 | H166: 2465 | J166: TRUE | K166: TRUE | L166: TRUE | M166: TRUE | N166: TRUE
A167: 1 | B167: Rider Comp. Maternidad | D167: 0 | E167: 0 | F167: 225 | G167: 225 | H167: 225
A168: 1 | B168: Transplante de organos | D168: 0 | E168: 0 | F168: 0 | G168: 0 | H168: 0
A170: TARIFAS SEMESTRALES
A171: EDAD
D172: CW2 | E172: CW3 | F172: CW4 | G172: CW5 | H172: CW6
A173: 18 | B173: - 24 | D173: =$L$2*D140 -> 4725.48 | E173: =$L$2*E140 -> 3249.43 | F173: 2248.26 | G173: 1565.09 | H173: 1193.56
A174: 25 | B174: - 29 | D174: =$L$2*D141 -> 4958.15 | E174: 3596.58 | F174: 2492.06 | G174: 1732.57 | H174: 1319.17
A175: 30 | B175: - 34 | D175: 5179.69 | E175: 3849.39 | F175: 2794.69 | G175: 2096.15 | H175: 1600.6
A176: 35 | B176: - 39 | D176: 5799.26 | E176: 4309.43 | F176: 3129.65 | G176: 2350.55 | H176: 1792.46
A177: 40 | B177: - 44 | D177: 6711.92 | E177: 4720.71 | F177: 3482.63 | G177: 2591.7 | H177: 1978.49
A178: 45 | B178: - 49 | D178: 7498.44 | E178: 5275.62 | F178: 3892.85 | G178: 2896.45 | H178: 2214.34
A179: 50 | B179: - 54 | D179: 9802.88 | E179: 6958.9 | F179: 5107.61 | G179: 4134 | H179: 3157.74
A180: 55 | B180: - 59 | D180: 10428.81 | E180: 7404.1 | F180: 5438.33 | G180: 4397.41 | H180: 3363.38
A181: 60 | D181: 11356.84 | E181: 8042.22 | F181: 6186.16 | G181: 5230.04 | H181: 4202.37
A182: 61 | D182: 12201.13 | E182: 8634.23 | F182: 6646.2 | G182: 5623.3 | H182: 4511.89
A183: 62 | D183: 13355.47 | E183: 9457.85 | F183: 7278.49 | G183: 6157.01 | H183: 4940.66
A184: 63 | D184: 14201.35 | E184: 10055.69 | F184: 7736.94 | G184: 6543.91 | H184: 5253.89
A185: 64 | D185: 15360.99 | E185: 10879.84 | F185: 8370.82 | G185: 7078.68 | H185: 5685.31
A186: 65 | D186: 20079.58 | E186: 14189.69 | F186: 10583.57 | G186: 9441.95 | H186: 8015.72
A187: 66 | D187: 23326.89 | E187: 16488.3 | F187: 12297.06 | G187: 10971.53 | H187: 9315.28
A188: 67 | D188: 25478.16 | E188: 18010.46 | F188: 13429.67 | G188: 11979.06 | H188: 10173.88
A189: 68 | D189: 28212.43 | E189: 19938.6 | F189: 14876.57 | G189: 13271.73 | H189: 11264.62
A190: 69 | D190: 31038.39 | E190: 21933.52 | F190: 16362.69 | G190: 14597.26 | H190: 12395.11
A191: 70 | D191: 38197.63 | E191: 26710.94 | F191: 19260.2 | G191: 17008.23 | H191: 14580.3
A192: 71 | D192: 39699.65 | E192: 27758.22 | F192: 20016.51 | G192: 17677.09 | H192: 15154.82
A193: 72 | D193: 40823.78 | E193: 28545.27 | F193: 20583.08 | G193: 18177.94 | H193: 15579.88
A194: 73 | D194: 42323.68 | E194: 29594.14 | F194: 21342.04 | G194: 18843.62 | H194: 16157.05
A195: 74 | D195: 43071.51 | E195: 30115.13 | F195: 21717.28 | G195: 19180.17 | H195: 16442.19
A196: 75 | B196: o más | D196: 44950.36 | E196: 31426.35 | F196: 22662.8 | G196: 20015.45 | H196: 17155.04
A197: 1 | B197: Hijo | D197: 1639.82 | E197: 1199.92 | F197: 914.78 | G197: 756.84 | H197: 558.62
A198: 2 | B198: Hijos | D198: 2609.19 | E198: 1908.53 | F198: 1455.38 | G198: 1203.63 | H198: 890.4
A199: 3 | B199: Hijos o más | D199: 3818.65 | E199: 2797.87 | F199: 2130.6 | G199: 1762.78 | H199: 1306.45
A200: 1 | B200: Rider Comp. Maternidad | D200: =+D167*$L$2 -> 0 | E200: 0 | F200: 119.25 | G200: 119.25 | H200: 119.25
A201: 1 | B201: Transplante de organos | D201: 0 | E201: 0 | F201: 0 | G201: 0 | H201: 0
A203: COMPLETE (LATINAMERICA ONLY)
A204: TARIFAS ANUALES
A205: EDAD
A207: 18 | B207: - 24
A208: 25 | B208: - 29
A209: 30 | B209: - 34
A210: 35 | B210: - 39
... 329 more rows
